bitfinex-derivatives/quotes_BNBF0:USTF0_20251219
["timestamp","ask_amount","ask_price","bid_price","bid_amount"]
[1766128549252,0.87325963,849.17,848.49,1.896]
[1766128549752,0.87325963,849.07,848.49,1.896]
[1766128550248,0.87325963,849.08,848.49,1.896]
[1766128550748,0.87325963,849.14,848.49,1.896]
[1766128551152,0.87325963,849.15,848.49,1.896]
[1766128551353,0.87325963,849.16,848.49,1.896]
[1766128552256,0.87325963,849.13,848.49,1.896]
[1766128552751,0.87325963,849.02,848.49,1.896]
[1766128553251,0.87325963,849.16,848.49,1.896]
[1766128553455,0.87325963,849.23,848.49,1.896]
[1766128554058,0.87325963,849.06,848.49,1.896]
[1766128554356,0.87325963,849.08,848.49,1.896]
[1766128555055,0.87325963,849.09,848.49,1.896]
[1766128555255,0.87325963,849.11,848.49,1.896]
[1766128556155,0.87325963,849.12,848.49,1.896]
[1766128556759,0.87325963,849.08,848.49,1.896]
[1766128556956,0.87325963,849.01,848.49,1.896]
[1766128557459,0.87325963,849.03,848.49,1.896]
[1766128557657,0.87325963,849.04,848.49,1.896]
[1766128558157,0.87325963,849.15,848.49,1.896]
[1766128558962,0.87325963,849.19,848.49,1.896]
[1766128559358,0.87325963,849.2,848.49,1.896]
[1766128560161,0.87325963,849.27,848.49,1.896]
[1766128561658,8.81411801,849.94,848.49,1.896]
[1766128561659,0.87325963,849.24,848.49,1.896]
[1766128561863,0.87325963,849.18,848.49,1.896]
[1766128562062,0.87325963,849.13,848.49,1.896]
[1766128562262,0.87325963,849.14,848.49,1.896]
[1766128563262,0.87325963,849.15,848.49,1.896]
[1766128564063,0.87325963,849.14,848.49,1.896]
[1766128564363,0.87325963,849.1,848.49,1.896]
[1766128564565,0.87325963,849.06,848.49,1.896]
[1766128565166,0.87325963,849.04,848.49,1.896]
[1766128565367,0.87325963,849.03,848.49,1.896]
[1766128566163,0.87325963,849.02,848.49,1.896]
[1766128566466,0.87325963,849.01,848.49,1.896]
[1766128566767,0.87325963,848.99,848.49,1.896]
[1766128566966,0.87325963,848.92,848.49,1.896]
[1766128567162,0.87325963,848.91,848.49,1.896]
[1766128567365,0.87325963,848.86,848.49,1.896]
[1766128567664,0.87325963,848.67,846.62,54.34517536]
[1766128567868,0.87325963,848.73,846.78,0.01511187]
[1766128568062,0.87325963,848.73,846.64,0.20516207]
[1766128568267,0.87325963,848.75,846.64,0.20516207]
[1766128569263,0.87325963,848.76,846.64,0.20516207]
[1766128569863,0.87325963,848.7,846.64,0.20516207]
[1766128570367,0.87325963,848.72,846.64,0.20516207]
[1766128570565,0.87325963,848.72,846.65,1.654]
[1766128571269,0.87325963,848.74,846.65,1.654]
[1766128571770,0.86703557,848.74,846.65,1.654]
[1766128572268,0.86703557,848.75,846.65,1.654]
[1766128572666,0.86703557,848.7,846.65,1.654]
[1766128573269,0.86703557,848.71,846.65,1.654]
[1766128573467,0.86703557,848.75,846.65,1.654]
[1766128574170,0.86703557,848.79,846.65,1.654]
[1766128574371,0.86703557,848.91,846.65,1.654]
[1766128574870,0.86703557,848.99,846.65,1.654]
[1766128575466,0.86703557,848.98,846.65,1.654]
[1766128575671,0.86703557,848.99,846.65,1.654]
[1766128576182,0.86703557,848.95,846.65,1.654]
[1766128576465,2.91403013,849.9,846.65,1.654]
[1766128576466,0.86703557,848.82,846.65,1.654]
[1766128576666,0.86703557,848.76,846.65,1.654]
[1766128577372,0.86703557,848.71,846.65,1.654]
[1766128578572,0.86703557,848.72,846.65,1.654]
[1766128578773,0.86703557,848.78,846.65,1.654]
[1766128579173,0.86703557,848.77,846.65,1.654]
[1766128579469,0.86703557,848.78,846.65,1.654]
[1766128580774,0.86703557,848.91,846.65,1.654]
[1766128581069,0.86703557,848.93,846.65,1.654]
[1766128581569,0.86703557,848.98,846.65,1.654]
[1766128582274,0.86703557,848.97,846.65,1.654]
[1766128583672,0.86703557,848.99,846.65,1.654]
[1766128584076,0.86703557,849.05,846.65,1.654]
[1766128584277,0.86703557,849.11,846.65,1.654]
[1766128584673,0.86703557,849.12,846.65,1.654]
[1766128585276,0.86703557,849.1,846.65,1.654]
[1766128586176,0.86703557,849.08,846.65,1.654]
[1766128587277,0.86703557,849.06,846.65,1.654]
[1766128588476,0.86703557,849.04,846.65,1.654]
[1766128588677,1.74841808,849.34,846.65,1.654]
[1766128588678,0.86703557,849.03,846.65,1.654]
[1766128588972,0.86703557,848.99,846.65,1.654]
[1766128589172,0.86703557,848.97,846.65,1.654]
[1766128590273,0.01123539,849.82,846.65,1.654]
[1766128590274,0.86703557,848.94,846.65,1.654]
[1766128591173,0.86703557,848.92,846.67,0.85023225]
[1766128591374,0.86703557,848.94,846.7,0.85023225]
[1766128592378,0.86703557,848.92,846.73,0.85023225]
[1766128592974,0.86703557,848.92,846.65,1.654]
[1766128592975,0.86703557,848.93,846.74,0.85023225]
[1766128593180,0.86703557,848.91,846.77,0.85023225]
[1766128593375,0.86703557,848.9,846.77,0.85023225]
[1766128594279,0.86703557,848.9,846.65,1.654]
[1766128594280,0.86703557,848.88,846.8,0.85023225]
[1766128594682,0.86703557,848.94,846.86,0.85023225]
[1766128595283,0.86703557,848.92,846.9,0.85023225]
[1766128596184,0.86703557,848.89,846.94,0.85023225]
[1766128597186,0.86703557,848.85,846.98,0.85023225]
[1766128598286,0.86703557,848.82,847.03,0.85023225]
[1766128599385,0.86703557,848.78,847.07,0.85023225]
[1766128599785,0.00953273,849.63,846.65,1.654]
[1766128599786,0.86703557,848.84,847.13,0.85023225]
[1766128600190,0.20519231,848.42,847.17,0.85023225]
[1766128601191,0.20519231,848.42,847.21,0.85023225]
[1766128601596,0.20519231,848.42,847.24,0.85023225]
[1766128601896,0.20519231,848.42,847.23,0.85023225]
[1766128602192,0.20519231,848.42,847.26,0.85023225]
[1766128603397,0.20519231,848.42,847.19,0.85023225]
[1766128603797,0.20519231,848.42,847.12,0.85023225]
[1766128604194,0.20519231,848.42,847.13,0.85023225]
[1766128605198,0.20519231,848.42,847.14,0.85023225]
[1766128605794,0.20519231,848.42,847.08,0.85023225]
[1766128606199,0.20519231,848.42,847.09,0.85023225]
[1766128607200,0.20519231,848.42,847.1,0.85023225]
[1766128608299,0.20519231,848.42,847.11,0.85023225]
[1766128609198,0.20519231,848.42,847.12,0.85023225]
[1766128610301,0.20519231,848.42,847.13,0.85023225]
[1766128610702,0.20519231,848.42,847.1,0.85023225]
[1766128611002,0.86703557,848.4,847.04,0.85023225]
[1766128611197,0.86703557,848.39,847.05,0.85023225]
[1766128611400,0.86703557,848.39,846.89,1.13965087]
[1766128611401,0.86703557,848.38,847.04,0.85023225]
[1766128612101,0.86703557,848.38,847.03,0.85023225]
[1766128612298,0.86703557,848.34,847.01,0.85023225]
[1766128612902,0.86703557,848.3,846.97,0.85023225]
[1766128613399,0.86703557,848.29,846.97,0.85023225]
[1766128614606,0.86703557,848.3,846.98,0.85023225]
[1766128615404,0.86703557,848.35,847.03,0.85023225]
[1766128616206,0.86703557,848.34,847.03,0.85023225]
[1766128617006,0.86703557,848.33,847.02,0.85023225]
[1766128617203,0.86703557,848.27,846.96,0.85023225]
[1766128618209,0.86703557,848.27,846.97,0.85023225]
[1766128618710,0.86703557,848.28,846.97,0.85023225]
[1766128619108,0.86703557,848.32,847.01,0.85023225]
[1766128619404,0.86703557,848.35,847.06,0.85023225]
[1766128619605,0.20519231,848.42,847.14,0.85023225]
[1766128621211,0.20519231,848.42,847.15,0.85023225]
[1766128621412,0.86703557,848.28,847.02,0.85023225]
[1766128621612,0.86703557,848.06,846.8,0.85023225]
[1766128621814,0.86703557,848.11,846.84,0.85023225]
[1766128622013,0.86703557,848.19,846.92,0.85023225]
[1766128622513,0.86703557,848.27,847.01,0.85023225]
[1766128623213,0.86703557,848.27,847.02,0.85023225]
[1766128624011,0.86703557,848.27,847.11,0.85023225]
[1766128624213,0.86703557,848.38,847.12,0.85023225]
[1766128624510,0.86703557,848.37,847.13,0.85023225]
[1766128624816,0.20519231,848.42,847.23,0.85023225]
[1766128626012,0.20519231,848.42,847.25,0.85023225]
[1766128626617,0.20519231,848.42,847.32,0.85023225]
[1766128626814,0.20519231,848.42,847.35,0.85023225]
[1766128627318,0.20519231,848.42,847.34,0.85023225]
[1766128627819,0.86703557,848.61,847.36,0.85023225]
[1766128628017,0.2051669,848.64,847.5,0.85023225]
[1766128628214,0.2051669,848.64,847.51,0.85023225]
[1766128628419,0.2051669,848.64,847.5,0.85023225]
[1766128628615,0.2051669,848.64,847.51,1.627]
[1766128629516,0.2051669,848.64,847.52,0.85023225]
[1766128630222,0.2051669,848.64,847.51,1.627]
[1766128630420,1.16561205,848.6,847.51,1.627]
[1766128630723,0.86703557,848.29,847.51,1.627]
[1766128631920,0.86703557,848.28,847.51,1.627]
[1766128632420,0.86703557,848.21,847.51,1.627]
[1766128632816,1.16561205,848.36,847.51,1.627]
[1766128632817,0.86703557,848.2,847.51,1.627]
[1766128633218,0.86703557,848.05,847.51,1.627]
[1766128633423,0.86703557,848.04,847.51,1.627]
[1766128633721,0.86703557,847.96,847.51,1.627]
[1766128634221,0.86703557,847.91,847.51,1.627]
[1766128634419,0.86703557,847.89,847.51,1.627]
[1766128635320,0.86703557,847.91,847.51,1.627]
[1766128636022,0.86703557,847.97,847.51,1.627]
[1766128636323,0.86703557,848.06,847.51,1.627]
[1766128636523,0.2051669,848.64,847.51,1.627]
[1766128636524,0.86703557,848.12,847.51,1.627]
[1766128637326,0.86703557,848.09,847.51,1.627]
[1766128638223,0.86703557,848.08,847.51,1.627]
[1766128638420,0.86703557,848.09,847.51,1.627]
[1766128638622,0.86703557,848.06,847.51,1.627]
[1766128638826,0.2051669,848.64,847.51,1.627]
[1766128638827,0.86703557,848.01,847.51,1.627]
[1766128639424,0.86703557,848.03,847.51,1.627]
[1766128639627,0.86703557,848.09,847.51,1.627]
[1766128640523,0.86703557,848.08,847.51,1.627]
[1766128641023,0.86703557,848.07,847.51,1.627]
[1766128641229,0.86703557,848.03,847.51,1.627]
[1766128641424,0.86703557,848.0,847.51,1.627]
[1766128641825,0.86703557,847.96,847.51,1.627]
[1766128642230,0.86703557,847.98,847.51,1.627]
[1766128642426,0.86703557,847.97,847.51,1.627]
[1766128642933,0.86703557,847.91,847.51,1.627]
[1766128643130,0.86703557,847.86,847.51,1.627]
[1766128643336,0.86703557,847.88,847.51,1.627]
[1766128643833,0.86703557,847.89,847.51,1.627]
[1766128644129,0.86703557,847.97,847.51,1.627]
[1766128644429,0.86703557,847.98,847.51,1.627]
[1766128645433,0.86703557,847.99,847.51,1.627]
[1766128645830,0.86703557,847.98,847.51,1.627]
[1766128646232,0.86703557,847.99,847.51,1.627]
[1766128646428,0.86703557,847.93,847.51,1.627]
[1766128647034,1.16561205,848.08,847.51,1.627]
[1766128647230,0.87760593,847.92,847.51,1.627]
[1766128647435,0.87760593,847.87,847.51,1.627]
[1766128647732,0.87760593,847.68,847.51,1.627]
[1766128648337,0.87760593,847.71,847.51,1.627]
[1766128648738,0.87760593,847.7,846.65,0.01118622]
[1766128648939,0.87760593,847.7,846.06,0.86143479]
[1766128649339,0.87760593,847.73,846.03,0.86143479]
[1766128649534,0.87760593,847.55,845.86,0.86143479]
[1766128650335,0.87760593,847.58,845.84,0.20547642]
[1766128651440,0.87760593,847.62,845.84,0.20547642]
[1766128651637,0.87760593,847.7,845.88,0.86143479]
[1766128652241,0.87760593,847.72,845.89,1.347]
[1766128653538,0.87760593,847.74,845.89,1.347]
[1766128653738,0.87760593,847.66,845.89,1.347]
[1766128654442,0.87760593,847.67,845.89,1.347]
[1766128654641,0.87760593,847.61,845.89,1.347]
[1766128655338,0.87760593,847.52,845.89,1.347]
[1766128655542,0.87760593,847.5,845.89,1.347]
[1766128656242,0.87760593,847.52,845.89,1.347]
[1766128657241,0.87760593,847.54,845.89,1.347]
[1766128657442,0.87760593,847.5,845.89,1.347]
[1766128658344,0.87760593,847.51,845.89,1.347]
[1766128659147,0.87760593,847.49,845.89,1.347]
[1766128659444,0.87760593,847.51,845.89,1.347]
[1766128659845,0.87760593,847.47,845.89,1.347]
[1766128660439,8.9057522,847.92,845.89,1.347]
[1766128660440,0.87760593,847.49,845.89,1.347]
[1766128660942,0.87760593,847.48,845.89,1.347]
[1766128661346,0.87760593,847.5,845.89,1.347]
[1766128662148,0.87760593,847.58,845.89,1.347]
[1766128662340,0.87760593,847.59,845.89,1.347]
[1766128663144,0.87760593,847.6,845.89,1.347]
[1766128664154,0.87760593,847.61,845.89,1.347]
[1766128664450,0.87760593,847.62,845.89,1.347]
[1766128664751,0.87760593,847.49,845.89,1.347]
[1766128665250,0.87760593,847.5,845.89,1.347]
[1766128665551,0.87760593,847.49,845.89,1.347]
[1766128665753,0.87760593,847.37,845.89,1.347]
[1766128666356,0.87760593,847.39,845.89,1.347]
[1766128667356,0.87760593,847.42,845.89,1.347]
[1766128668257,0.87760593,847.48,845.89,1.347]
[1766128669255,8.9057522,847.92,845.89,1.347]
[1766128669256,0.87760593,847.49,845.89,1.347]
[1766128670260,0.87760593,847.5,845.89,1.347]
[1766128670457,0.87760593,847.49,845.89,1.347]
[1766128671161,0.87760593,847.46,845.89,1.347]
[1766128671355,0.87760593,847.47,845.89,1.347]
[1766128671556,0.87760593,847.4,845.89,1.347]
[1766128672262,1.16561205,847.56,845.89,1.347]
[1766128672263,0.87760593,847.42,845.89,1.347]
[1766128673360,0.87760593,847.43,845.89,1.347]
[1766128674259,0.87760593,847.35,845.89,1.347]
[1766128674665,0.87760593,847.32,845.89,1.347]
[1766128674960,0.87760593,847.32,845.01,0.0091568]
[1766128675166,0.87760593,847.32,844.77,0.86143479]
[1766128675366,0.87760593,847.33,845.23,0.20565188]
[1766128675568,0.87760593,847.33,845.23,13.32533835]
[1766128675773,0.87760593,847.16,845.23,13.11968647]
[1766128676073,0.87760593,847.09,845.23,13.11968647]
[1766128676273,0.87760593,847.1,845.23,13.11968647]
[1766128676765,0.87760593,847.11,845.23,13.11968647]
[1766128677070,0.87760593,847.19,845.23,13.11968647]
[1766128677264,0.87760593,847.21,845.23,13.11968647]
[1766128677766,0.87760593,847.2,845.24,1.18]
[1766128678272,0.87760593,847.21,845.24,1.18]
[1766128678470,8.9057522,847.92,845.24,1.18]
[1766128678471,0.87760593,847.22,845.24,1.18]
[1766128679864,0.87760593,847.2,845.24,1.18]
[1766128680566,0.87760593,847.13,845.24,1.18]
[1766128680766,0.87760593,847.12,845.24,1.18]
[1766128681172,0.87760593,847.13,845.24,1.18]
[1766128681869,0.87760593,847.1,845.24,1.18]
[1766128682273,0.87760593,847.11,845.24,1.18]
[1766128683269,0.87760593,847.12,845.24,1.18]
[1766128684170,0.87760593,847.11,845.24,1.18]
[1766128685074,0.87760593,847.15,845.24,1.18]
[1766128685274,0.87760593,847.14,845.24,1.18]
[1766128686176,0.87760593,847.1,845.24,1.18]
[1766128686377,0.87760593,847.08,845.24,1.18]
[1766128687180,0.87760593,847.09,845.24,1.18]
[1766128687475,0.87760593,847.07,845.24,1.18]
[1766128688277,0.87760593,847.04,845.24,1.18]
[1766128688477,0.87760593,847.13,845.24,1.18]
[1766128689383,0.87760593,847.1,845.24,1.18]
[1766128690180,0.87760593,847.08,845.24,1.18]
[1766128690381,8.9057522,847.92,845.24,1.18]
[1766128690382,0.87760593,847.04,845.24,1.18]
[1766128690881,0.87760593,846.98,845.24,1.18]
[1766128691076,0.87760593,846.97,845.24,1.18]
[1766128691283,0.87760593,846.82,845.24,1.18]
[1766128692282,0.87760593,846.81,845.24,1.18]
[1766128692482,0.87760593,846.82,845.24,1.18]
[1766128692678,0.87760593,846.9,845.24,1.18]
[1766128693177,0.87760593,846.99,845.24,1.18]
[1766128693384,0.87760593,847.02,845.24,1.18]
[1766128694284,0.87760593,847.01,845.24,1.18]
[1766128694479,0.87760593,846.96,845.24,1.18]
[1766128695179,0.87760593,846.95,845.24,1.18]
[1766128696283,0.87760593,846.94,845.24,1.18]
[1766128697383,0.87760593,846.93,845.24,1.18]
[1766128697585,0.87760593,846.92,845.24,1.18]
[1766128698396,0.87760593,846.9,845.24,1.18]
[1766128698582,0.87760593,846.84,845.24,1.18]
[1766128699184,0.87760593,846.82,845.24,1.18]
[1766128699383,0.87760593,846.74,845.24,1.18]
[1766128700087,0.87760593,846.71,845.24,1.18]
[1766128700287,0.87760593,846.69,845.24,1.18]
[1766128700487,9.70442502,846.64,845.24,1.18]
[1766128701385,0.87760593,846.62,845.24,1.18]
[1766128702185,0.87760593,846.61,845.24,1.18]
[1766128702891,0.87760593,846.56,845.24,1.18]
[1766128703388,0.87760593,846.55,845.24,1.18]
[1766128703892,0.87760593,846.54,845.24,1.18]
[1766128704387,0.87760593,846.5,845.24,1.18]
[1766128704591,0.87760593,846.4,845.24,1.18]
[1766128704988,8.82681909,846.64,845.24,1.18]
[1766128704989,0.87760593,846.43,845.24,1.18]
[1766128705290,0.87760593,846.49,845.24,1.18]
[1766128705487,0.87760593,846.39,845.24,1.18]
[1766128706290,0.87760593,846.38,845.24,1.18]
[1766128706488,0.87760593,846.37,845.24,1.18]
[1766128706688,0.87760593,846.35,845.24,1.18]
[1766128706897,0.87760593,846.29,845.24,1.18]
[1766128707487,0.87760593,846.28,845.24,1.18]
[1766128708291,0.87760593,846.34,845.24,1.18]
[1766128708691,0.87760593,846.4,845.24,1.18]
[1766128709292,0.87760593,846.39,845.24,1.18]
[1766128710795,0.87760593,846.42,845.24,1.18]
[1766128710995,0.87760593,846.47,845.24,1.18]
[1766128711290,0.87760593,846.61,845.24,1.18]
[1766128711989,8.82681909,846.64,845.24,1.18]
[1766128712190,9.70442502,846.64,845.24,1.18]
[1766128712489,0.87760593,846.63,845.24,1.18]
[1766128713295,0.87760593,846.61,845.24,1.18]
[1766128714291,0.87760593,846.59,845.24,1.18]
[1766128714792,0.8766494,846.59,845.24,1.18]
[1766128715397,0.8766494,846.58,845.24,1.18]
[1766128716196,0.8766494,846.57,845.24,1.18]
[1766128717298,0.8766494,846.56,845.24,1.18]
[1766128718400,0.8766494,846.55,845.24,1.18]
[1766128719199,0.8766494,846.53,845.24,1.18]
[1766128719407,0.8766494,846.47,845.24,1.18]
[1766128719900,0.8766494,846.47,844.82,0.86315282]
[1766128720103,0.8766494,846.49,844.84,0.86315282]
[1766128720299,0.8766494,846.48,844.85,0.86315282]
[1766128720902,0.8766494,846.46,844.83,0.86315282]
[1766128721101,0.8766494,846.4,844.83,12.66142771]
[1766128721301,0.8766494,846.39,844.83,12.66142771]
[1766128721906,0.8766494,846.37,844.83,12.66142771]
[1766128722104,0.8766494,846.32,844.83,12.66142771]
[1766128722304,0.8766494,846.3,844.83,12.66142771]
[1766128722509,0.8766494,846.22,844.83,12.66142771]
[1766128723011,0.8766494,846.2,844.83,12.66142771]
[1766128723204,0.8766494,846.19,844.83,12.66142771]
[1766128723705,0.8766494,846.19,844.84,1.777]
[1766128724010,0.8766494,846.25,844.84,1.777]
[1766128724207,0.8766494,846.27,844.84,1.777]
[1766128725207,0.8766494,846.26,844.84,1.777]
[1766128725411,0.8766494,846.25,844.84,1.777]
[1766128727209,0.8766494,846.24,844.84,1.777]
[1766128728110,1.74841808,846.55,844.84,1.777]
[1766128728111,0.8766494,846.28,844.84,1.777]
[1766128728409,0.8766494,846.32,844.9,0.86315282]
[1766128729011,0.8766494,846.39,844.97,0.86315282]
[1766128729413,0.8766494,846.38,844.99,0.86315282]
[1766128730418,0.8766494,846.39,845.05,0.86315282]
[1766128730614,0.8766494,846.4,845.05,0.86315282]
[1766128731214,0.8766494,846.38,845.07,0.86315282]
[1766128732221,0.8766494,846.35,845.08,0.86315282]
[1766128732522,8.82681909,846.64,844.87,0.86315282]
[1766128732523,0.8766494,846.15,844.87,0.86315282]
[1766128732923,0.8766494,846.07,844.84,1.777]
[1766128733318,0.8766494,846.06,844.84,1.777]
[1766128733623,0.8766494,845.99,844.84,1.777]
[1766128734518,0.8766494,846.07,844.85,0.86315282]
[1766128734723,0.8766494,846.08,844.85,0.86315282]
[1766128734922,0.8766494,846.1,844.87,0.86315282]
[1766128735123,0.8766494,846.1,844.84,1.777]
[1766128735124,0.8766494,846.23,845.0,0.86315282]
[1766128735422,0.8766494,846.22,845.02,0.86315282]
[1766128735623,0.8766494,846.28,845.07,0.86315282]
[1766128735823,0.8766494,846.28,845.08,0.86315282]
[1766128736221,0.8766494,846.3,845.1,0.86315282]
[1766128736623,0.8766494,846.29,845.1,0.86315282]
[1766128738319,0.8766494,846.28,845.09,0.86315282]
[1766128738519,0.8766494,846.27,845.1,0.86315282]
[1766128740525,0.8766494,846.28,845.1,0.86315282]
[1766128740831,0.8766494,846.28,845.11,0.86315282]
[1766128741121,0.8766494,846.31,845.15,0.86315282]
[1766128743225,0.8766494,846.31,845.16,0.86315282]
[1766128743625,0.8766494,846.3,845.15,0.86315282]
[1766128746330,0.8766494,846.29,845.15,0.86315282]
[1766128747830,0.8766494,846.29,844.84,1.777]
[1766128747831,0.8766494,846.3,845.16,0.86315282]
[1766128748130,0.8766494,846.3,844.84,1.777]
[1766128748131,0.8766494,846.4,845.26,0.86315282]
[1766128748326,0.8766494,846.4,845.25,0.86315282]
[1766128748526,0.8766494,846.41,845.26,0.86315282]
[1766128748926,0.8766494,846.45,845.3,0.86315282]
[1766128749327,0.8766494,846.45,845.15,1.13965087]
[1766128749328,0.8766494,846.5,845.35,0.86315282]
[1766128750332,0.8766494,846.5,845.34,0.86315282]
[1766128750933,0.8766494,846.51,845.35,0.86315282]
[1766128751133,0.8766494,846.58,845.42,0.86315282]
[1766128751333,0.8766494,846.59,845.41,0.86315282]
[1766128751836,8.82681909,846.64,844.84,1.777]
[1766128751837,0.8766494,846.55,845.37,0.86315282]
[1766128752328,0.8766494,846.56,845.36,0.86315282]
[1766128752935,0.8766494,846.6,845.4,0.86315282]
[1766128753335,0.8766494,846.61,845.4,0.86315282]
[1766128753630,0.8766494,846.62,845.41,0.86315282]
[1766128753834,8.82681909,846.64,845.45,0.86315282]
[1766128754438,8.82681909,846.64,845.29,1.13965087]
[1766128754439,8.82681909,846.64,845.44,0.86315282]
[1766128754633,8.82681909,846.64,845.47,0.86315282]
[1766128755239,8.82681909,846.64,845.46,0.86315282]
[1766128755441,8.82681909,846.64,845.54,0.86315282]
[1766128755841,8.82681909,846.64,845.55,0.86315282]
[1766128756637,0.8766494,847.04,845.73,0.86315282]
[1766128756842,0.8766494,847.04,845.74,0.86315282]
[1766128757044,0.8766494,847.11,845.81,0.86315282]
[1766128757344,0.8766494,847.15,845.77,0.86315282]
[1766128758449,1.16561205,847.31,845.62,1.13965087]
[1766128758741,1.74841808,847.46,845.46,1.70947631]
[1766128759041,1.74841808,847.46,845.61,1.15334485]
[1766128759339,1.17344483,847.31,845.61,1.15334485]
[1766128759542,0.88008362,847.16,845.77,0.86500864]
[1766128759943,1.17344483,847.31,845.77,0.86500864]
[1766128760340,1.17344483,847.31,845.61,1.15334485]
[1766128760540,0.87995822,847.21,845.75,0.86484699]
[1766128761141,0.87995822,847.22,845.75,0.86484699]
[1766128761446,0.87995822,847.24,845.71,0.86484699]
[1766128761646,0.87995822,847.25,845.72,0.86484699]
[1766128762343,54.014946,847.58,845.68,0.86484699]
[1766128762344,0.87995822,847.27,845.68,0.86484699]
[1766128762746,0.87995822,847.27,845.69,0.86484699]
[1766128763243,0.87995822,847.37,845.72,0.86484699]
[1766128763847,0.87995822,847.42,845.77,0.86484699]
[1766128764147,0.87995822,847.41,845.76,0.86484699]
[1766128764444,0.87995822,847.43,845.73,0.86484699]
[1766128765146,0.87995822,847.42,845.72,0.86484699]
[1766128765348,0.87995822,847.39,845.64,0.86484699]
[1766128765842,0.87995822,847.39,845.49,1.15334485]
[1766128765843,0.87995822,847.37,845.62,0.86484699]
[1766128766344,0.87995822,847.38,845.6,0.86484699]
[1766128767246,0.87995822,847.39,845.59,0.86484699]
[1766128768348,0.87995822,847.4,845.58,0.86484699]
[1766128769344,0.87995822,847.4,845.57,0.86484699]
[1766128770244,0.87995822,847.41,845.56,0.86484699]
[1766128770950,0.87995822,847.47,845.61,0.86484699]
[1766128771346,0.87995822,847.48,845.59,0.86484699]
[1766128772152,0.87995822,847.49,845.58,0.86484699]
[1766128773048,0.87995822,847.43,845.51,0.86484699]
[1766128773248,9.87620789,847.43,845.5,0.86484699]
[1766128774347,8.99624967,847.43,845.49,0.86484699]
[1766128775353,8.99624967,847.43,845.51,0.86484699]
[1766128776354,8.99624967,847.43,845.58,0.86484699]
[1766128776557,8.99624967,847.43,845.61,0.86484699]
[1766128776753,8.99624967,847.43,845.56,0.86484699]
[1766128777251,8.99624967,847.43,845.55,0.86484699]
[1766128778149,8.99624967,847.43,845.48,0.86484699]
[1766128778354,8.99624967,847.43,845.47,0.86484699]
[1766128779051,8.99624967,847.43,845.58,0.86484699]
[1766128779255,8.99624967,847.43,845.66,0.86484699]
[1766128780459,8.99624967,847.43,845.65,0.86484699]
[1766128781255,8.99624967,847.43,845.62,0.86484699]
[1766128781660,8.99624967,847.43,845.56,0.86484699]
[1766128782458,8.99624967,847.43,845.54,0.86484699]
[1766128783159,8.99624967,847.43,845.55,0.86484699]
[1766128786262,8.99624967,847.43,845.56,0.86484699]
[1766128786666,8.99624967,847.43,845.57,1.855]
[1766128787165,8.99624967,847.43,845.57,2.71984699]
[1766128788165,8.99624967,847.43,845.58,0.86484699]
[1766128788966,8.99624967,847.43,845.57,1.855]
[1766128795266,8.99624967,847.43,845.58,0.86484699]
[1766128796073,8.99624967,847.43,845.64,0.86484699]
[1766128796272,8.99624967,847.43,845.66,0.86484699]
[1766128796567,8.99624967,847.43,845.67,0.86484699]
[1766128797173,8.99624967,847.43,845.68,0.86484699]
[1766128797574,8.99624967,847.43,845.72,0.86484699]
[1766128797876,8.99624967,847.43,845.78,0.86484699]
[1766128798377,8.99624967,847.43,845.79,0.86484699]
[1766128798575,8.99624967,847.43,845.73,0.86484699]
[1766128799170,8.99624967,847.43,845.72,0.86484699]
[1766128799375,8.99624967,847.43,845.74,0.86484699]
[1766128799576,8.99624967,847.43,845.72,0.86484699]
[1766128800276,8.99624967,847.43,845.68,0.86484699]
[1766128801073,9.87620789,847.43,845.66,0.86484699]
[1766128801276,9.87620789,847.43,845.57,1.855]
[1766128801277,0.87995822,847.38,845.62,0.86484699]
[1766128801472,0.87995822,847.37,845.64,0.86484699]
[1766128801675,0.87995822,847.35,845.62,0.86484699]
[1766128801873,0.87995822,847.37,845.64,0.86484699]
[1766128802075,8.99624967,847.43,845.76,0.86484699]
[1766128802274,8.99624967,847.43,845.79,0.86484699]
[1766128802677,8.99624967,847.43,845.83,0.86484699]
[1766128803077,8.99624967,847.43,845.82,0.86484699]
[1766128803377,8.99624967,847.43,845.85,0.86484699]
[1766128803779,9.87620789,847.43,845.77,0.86484699]